fUST/lending_fUST_20241025
["ID","MTS","AMOUNT","RATE_DAILY","PERIOD"]
[340787810,1729823442800,-151.0,0.00013698,2]
[340787811,1729823442809,-151.0,0.00013698,2]
[340787813,1729823442819,-151.0,0.00013698,2]
[340787814,1729823442828,-151.0,0.00013698,2]
[340787815,1729823442837,-151.0,0.00013698,2]
[340787817,1729823442847,-151.0,0.00013698,2]
[340787818,1729823442856,-151.0,0.00013698,2]
[340787819,1729823442865,-151.0,0.00013698,2]
[340787820,1729823442874,-975.57,0.00013698,2]
[340787821,1729823442884,-500.0,0.00013698,2]
[340787822,1729823442894,-777.6,0.00013698,2]
[340787823,1729823442903,-500.0,0.00013698,2]
[340787824,1729823442913,-826.77,0.00013698,2]
[340787825,1729823442923,-500.0,0.00013698,2]
[340787826,1729823442932,-500.0,0.00013698,2]
[340787827,1729823442941,-500.0,0.00013698,2]
[340787828,1729823442951,-580.7014968,0.00013698,2]
[340787829,1729823442961,-500.0,0.00013698,2]
[340787830,1729823442971,-500.0,0.00013698,2]
[340787831,1729823442980,-500.0,0.00013698,2]
[340787832,1729823442993,-530.33,0.00013698,2]
[340787833,1729823443002,-582.45904083,0.00013698,2]
[340787834,1729823443013,-583.40332822,0.00013698,2]
[340787835,1729823443022,-500.0,0.00013698,2]
[340787836,1729823443031,-244.317199,0.00013698,2]
[340787837,1729823443040,-244.317199,0.00013698,2]
[340787838,1729823443050,-975.93,0.00013698,2]
[340787839,1729823443059,-244.317199,0.00013698,2]
[340787840,1729823443068,-244.317199,0.00013698,2]
[340787841,1729823443077,-244.317199,0.00013698,2]
[340787842,1729823443087,-244.317199,0.00013698,2]
[340787843,1729823443097,-244.317199,0.00013698,2]
[340787844,1729823443107,-244.317199,0.00013698,2]
[340787845,1729823443116,-244.317199,0.00013698,2]
[340787846,1729823443126,-244.317199,0.00013698,2]
[340787848,1729823443136,-244.317199,0.00013698,2]
[340787849,1729823443145,-244.317199,0.00013698,2]
[340787850,1729823443154,-244.317199,0.00013698,2]
[340787851,1729823443165,-420.38749879,0.00013698,2]
[340787852,1729823443174,-244.317199,0.00013698,2]
[340787853,1729823443184,-500.0,0.00013698,2]
[340787854,1729823443193,-244.317199,0.00013698,2]
[340787855,1729823443202,-733.97,0.00013698,2]
[340787856,1729823443211,-244.317201,0.00013698,2]
[340787857,1729823443221,-257.272878,0.00013698,2]
[340787858,1729823443230,-257.272878,0.00013698,2]
[340787859,1729823443242,-257.272878,0.00013698,2]
[340787860,1729823443252,-257.272878,0.00013698,2]
[340787861,1729823443261,-257.272878,0.00013698,2]
[340787862,1729823443271,-257.272878,0.00013698,2]
[340787863,1729823443280,-500.0,0.00013698,2]
[340787864,1729823443289,-257.272878,0.00013698,2]
[340787866,1729823443301,-257.272878,0.00013698,2]
[340787868,1729823443311,-500.0,0.00013698,2]
[340787870,1729823443320,-257.272878,0.00013698,2]
[340787872,1729823443330,-257.272878,0.00013698,2]
[340787874,1729823443339,-257.272878,0.00013698,2]
[340787876,1729823443348,-257.272878,0.00013698,2]
[340787877,1729823443357,-257.272878,0.00013698,2]
[340787878,1729823443366,-257.272878,0.00013698,2]
[340787879,1729823443375,-257.272878,0.00013698,2]
[340787880,1729823443385,-257.27288,0.00013698,2]
[340787881,1729823443394,-500.0,0.00013698,2]
[340787882,1729823443403,-681.34,0.00013698,2]
[340787883,1729823443412,-1283.09,0.00013698,2]
[340787884,1729823443421,-1333.3,0.00013698,2]
[340787885,1729823443431,-500.0,0.00013698,2]
[340787886,1729823443440,-500.0,0.00013698,2]
[340787887,1729823443450,-500.0,0.00013698,2]
[340787888,1729823443459,-500.0,0.00013698,2]
[340787889,1729823443468,-500.0,0.00013698,2]
[340787890,1729823443478,-961.49,0.00013698,2]
[340787891,1729823443488,-2233.76,0.00013698,2]
[340787892,1729823443499,-500.0,0.00013698,2]
[340787893,1729823443508,-500.0,0.00013698,2]
[340787894,1729823443518,-580.07056866,0.00013698,2]
[340787895,1729823443528,-1478.81,0.00013698,2]
[340787896,1729823443539,-760.46,0.00013698,2]
[340787897,1729823443548,-622.1,0.00013698,2]
[340787898,1729823443558,-170.14723188,0.00013698,2]
[340787899,1729823443568,-1545.86,0.00013698,2]
[340787900,1729823443579,-557.83806312,0.00013698,2]
[340787901,1729823443589,-753.27,0.00013698,2]
[340787902,1729823443599,-876.45,0.00013698,2]
[340787903,1729823443612,-1534.39,0.00013698,2]
[340787904,1729823443621,-151.0,0.00013698,2]
[340787905,1729823443631,-151.0,0.00013698,2]
[340787906,1729823443642,-156.567925,0.00013698,2]
[340787907,1729823443652,-811.44,0.00013698,2]
[340787908,1729823443661,-500.0,0.00013698,2]
[340787909,1729823443671,-1300.14,0.00013698,2]
[340787910,1729823443681,-500.0,0.00013698,2]
[340787911,1729823443691,-500.0,0.00013698,2]
[340787912,1729823443700,-650.61,0.00013698,2]
[340787913,1729823443710,-500.0,0.00013698,2]
[340787914,1729823443720,-1072.96,0.00013698,2]
[340787915,1729823443731,-500.0,0.00013698,2]
[340787916,1729823443741,-155.847571,0.00013698,2]
[340787917,1729823443750,-1116.06,0.00013698,2]
[340787918,1729823443760,-500.0,0.00013698,2]
[340787919,1729823443769,-500.0,0.00013698,2]
[340787920,1729823443778,-500.0,0.00013698,2]
[340787921,1729823443788,-151.0,0.00013698,2]
[340787922,1729823443798,-151.0,0.00013698,2]
[340787923,1729823443807,-151.0,0.00013698,2]
[340787924,1729823443816,-300.375544,0.00013698,2]
[340787925,1729823443826,-215.96939652,0.00013698,2]
[340787926,1729823443844,-546.64060348,0.00013698,2]
[340787927,1729823443853,-500.0,0.00013698,2]
[340787928,1729823443862,-500.0,0.00013698,2]
[340787929,1729823443871,-151.0,0.00013698,2]
[340787930,1729823443881,-151.0,0.00013698,2]
[340787931,1729823443891,-500.0,0.00013698,2]
[340787932,1729823443900,-151.0,0.00013698,2]
[340787933,1729823443909,-151.0,0.00013698,2]
[340787934,1729823443919,-219.899382,0.00013698,2]
[340787935,1729823443929,-2669.81,0.00013698,2]
[340787936,1729823443938,-500.0,0.00013698,2]
[340787937,1729823443949,-500.0,0.00013698,2]
[340787938,1729823443959,-500.0,0.00013698,2]
[340787939,1729823443969,-607.11,0.00013698,2]
[340787940,1729823443979,-500.0,0.00013698,2]
[340787941,1729823443989,-1489.95,0.00013698,2]
[340787942,1729823443999,-1658.8,0.00013698,2]
[340787943,1729823444009,-500.0,0.00013698,2]
[340787944,1729823444018,-1605.09,0.00013698,2]
[340787945,1729823444027,-500.0,0.00013698,2]
[340787946,1729823444037,-500.0,0.00013698,2]
[340787947,1729823444048,-2847.28639283,0.00013698,2]
[340787953,1729823839863,153.0,0.000198,60]
[340787954,1729823972686,197.94,0.00010959,2]
[340787955,1729823983211,164.95,0.00010959,2]
[340787956,1729823993983,824.76,0.00010959,2]
[340787958,1729824084263,-300.0,0.00012683,2]
[340787959,1729824084293,-300.0,0.00012683,2]
[340787960,1729824084323,-24900.0,0.00012684,2]
[340787961,1729824084353,-3000.0,0.00012697,2]
[340787962,1729824084384,-530.23642093,0.00013588,2]
[340787963,1729824084414,-153.0,0.0001363,2]
[340787964,1729824084442,-500.0,0.00013673,2]
[340787965,1729824084468,-500.0,0.00013673,2]
[340787966,1729824084497,-4708.88943713,0.00013678,2]
[340787967,1729824084527,-1608.8687333,0.00013678,2]
[340787968,1729824084560,-16715.3649737,0.00013678,2]
[340787969,1729824084590,-227.768,0.00013686,2]
[340787970,1729824084621,-151.0,0.00013688,2]
[340787971,1729824084651,-151.0,0.00013688,2]
[340787972,1729824084684,-12870.9498664,0.00013688,2]
[340787973,1729824084713,-133382.92256854,0.00013688,2]
[340787974,1729824166075,-4786.94982666,0.00013542,2]
[340787975,1729824166102,-4584.15949324,0.00013598,2]
[340787976,1729824166129,-500.0,0.00013673,2]
[340787977,1729824166153,-500.0,0.00013673,2]
[340787978,1729824166178,-300.0,0.00013688,2]
[340787979,1729824166202,-300.0,0.00013688,2]
[340787980,1729824166230,-339.99722046,0.00013688,2]
[340787981,1729824166256,-1608.8687333,0.00013689,2]
[340787982,1729824166282,-16715.3649737,0.00013689,2]
[340787983,1729824166305,-528.0,0.00013696,2]
[340787984,1729824166327,-1151.0,0.00013696,2]
[340787985,1729824166349,-2397.0,0.00013696,2]
[340787986,1729824166373,-361.46606357,0.00013697,2]
[340787987,1729824166398,-5948.21271118,0.00013697,2]
[340787988,1729824166420,-500.0,0.00013698,2]
[340787989,1729824166443,-327.44428023,0.00013698,2]
[340787990,1729824166467,-500.0,0.00013698,2]
[340787991,1729824166489,-500.0,0.00013698,2]
[340787992,1729824166512,-500.0,0.00013698,2]
[340787993,1729824166539,-285.17891186,0.00013698,2]
[340787994,1729824166563,-500.0,0.00013698,2]
[340787995,1729824166586,-500.0,0.00013698,2]
[340787996,1729824166609,-500.0,0.00013698,2]
[340787997,1729824166631,-500.0,0.00013698,2]
[340787998,1729824166656,-500.0,0.00013698,2]
[340787999,1729824166680,-500.0,0.00013698,2]
[340788000,1729824166705,-500.0,0.00013698,2]
[340788001,1729824166730,-500.0,0.00013698,2]
[340788002,1729824166753,-500.0,0.00013698,2]
[340788003,1729824166777,-267.46793575,0.00013698,2]
[340788004,1729824166800,-500.0,0.00013698,2]
[340788005,1729824166824,-500.0,0.00013698,2]
[340788006,1729824166851,-500.0,0.00013698,2]
[340788007,1729824166877,-500.0,0.00013698,2]
[340788008,1729824166902,-500.0,0.00013698,2]
[340788009,1729824166926,-500.0,0.00013698,2]
[340788010,1729824166954,-500.0,0.00013698,2]
[340788011,1729824166979,-500.0,0.00013698,2]
[340788012,1729824167002,-500.0,0.00013698,2]
[340788013,1729824167027,-491.66236202,0.00013698,2]
[340788014,1729824167051,-765.37,0.00013698,2]
[340788015,1729824167074,-151.0,0.00013698,2]
[340788016,1729824167099,-151.0,0.00013698,2]
[340788017,1729824167122,-151.0,0.00013698,2]
[340788018,1729824167144,-151.0,0.00013698,2]
[340788019,1729824167168,-151.0,0.00013698,2]
[340788020,1729824167192,-151.0,0.00013698,2]
[340788021,1729824167217,-151.0,0.00013698,2]
[340788022,1729824167241,-151.0,0.00013698,2]
[340788023,1729824167266,-151.0,0.00013698,2]
[340788024,1729824167304,-175.531223,0.00013698,2]
[340788025,1729824167335,-712.64,0.00013698,2]
[340788026,1729824167361,-500.0,0.00013698,2]
[340788027,1729824167387,-1492.63,0.00013698,2]
[340788028,1729824167413,-500.0,0.00013698,2]
[340788029,1729824167438,-475.39177304,0.00013698,2]
[340788030,1729824167465,-500.0,0.00013698,2]
[340788031,1729824167488,-500.0,0.00013698,2]
[340788032,1729824167513,-500.0,0.00013698,2]
[340788033,1729824167542,-500.0,0.00013698,2]
[340788034,1729824167566,-651.58,0.00013698,2]
[340788035,1729824167589,-500.0,0.00013698,2]
[340788036,1729824167613,-151.0,0.00013698,2]
[340788037,1729824167637,-151.0,0.00013698,2]
[340788038,1729824167660,-151.0,0.00013698,2]
[340788039,1729824167683,-297.367786,0.00013698,2]
[340788040,1729824167707,-500.0,0.00013698,2]
[340788041,1729824167731,-741.85,0.00013698,2]
[340788042,1729824167755,-500.0,0.00013698,2]
[340788043,1729824167780,-500.0,0.00013698,2]
[340788044,1729824167804,-552.57,0.00013698,2]
[340788045,1729824167828,-500.0,0.00013698,2]
[340788046,1729824167851,-674.2,0.00013698,2]
[340788047,1729824167875,-160.53268751,0.00013698,2]
[340788048,1729824167900,-151.0,0.00013698,2]
[340788049,1729824167924,-151.0,0.00013698,2]
[340788050,1729824167951,-151.0,0.00013698,2]
[340788051,1729824167975,-151.0,0.00013698,2]
[340788052,1729824168001,-151.0,0.00013698,2]
[340788053,1729824168024,-287.439853,0.00013698,2]
[340788054,1729824168048,-500.0,0.00013698,2]
[340788055,1729824168072,-800.11,0.00013698,2]
[340788056,1729824168096,-500.0,0.00013698,2]
[340788057,1729824168118,-496.26308641,0.00013698,2]
[340788058,1729824168143,-151.0,0.00013698,2]
[340788059,1729824168167,-151.0,0.00013698,2]
[340788060,1729824168192,-151.0,0.00013698,2]
[340788061,1729824168216,-151.0,0.00013698,2]
[340788062,1729824168240,-151.0,0.00013698,2]
[340788063,1729824168264,-151.0,0.00013698,2]
[340788064,1729824168288,-151.0,0.00013698,2]
[340788065,1729824168312,-151.0,0.00013698,2]
[340788066,1729824168335,-151.0,0.00013698,2]
[340788067,1729824168359,-151.0,0.00013698,2]
[340788068,1729824168384,-151.0,0.00013698,2]
[340788069,1729824168411,-192.010387,0.00013698,2]
[340788070,1729824168435,-508.20361004,0.00013698,2]
[340788071,1729824168460,-565.91488594,0.00013698,2]
[340788072,1729824168482,-503.52521841,0.00013698,2]
[340788073,1729824168508,-504.31964964,0.00013698,2]
[340788074,1729824168530,-500.0,0.00013698,2]
[340788075,1729824168554,-650.94,0.00013698,2]
[340788076,1729824168578,-500.0,0.00013698,2]
[340788077,1729824168603,-445.00541071,0.00013698,2]
[340788078,1729824168626,-500.0,0.00013698,2]
[340788079,1729824168649,-500.0,0.00013698,2]
[340788080,1729824168672,-500.0,0.00013698,2]
[340788081,1729824168694,-500.0,0.00013698,2]
[340788082,1729824168717,-729.11,0.00013698,2]
[340788083,1729824168741,-500.0,0.00013698,2]
[340788084,1729824168764,-1571.71,0.00013698,2]
[340788085,1729824168786,-985.64,0.00013698,2]
[340788086,1729824168809,-1102.17,0.00013698,2]
[340788087,1729824168834,-538.75,0.00013698,2]
[340788088,1729824168858,-536.55,0.00013698,2]
[340788089,1729824168883,-157.027154,0.00013698,2]
[340788090,1729824168907,-806.88,0.00013698,2]
[340788091,1729824168936,-500.0,0.00013698,2]
[340788092,1729824168958,-500.0,0.00013698,2]
[340788093,1729824168983,-151.0,0.00013698,2]
[340788094,1729824169005,-151.0,0.00013698,2]
[340788095,1729824169027,-190.593776,0.00013698,2]
[340788096,1729824169050,-500.0,0.00013698,2]
[340788097,1729824169072,-519.92,0.00013698,2]
[340788098,1729824169094,-500.0,0.00013698,2]
[340788099,1729824169117,-500.0,0.00013698,2]
[340788100,1729824169141,-1589.69,0.00013698,2]
[340788101,1729824169164,-151.0,0.00013698,2]
[340788102,1729824169189,-151.0,0.00013698,2]
[340788103,1729824169212,-151.0,0.00013698,2]
[340788104,1729824169235,-151.0,0.00013698,2]
[340788105,1729824169258,-151.0,0.00013698,2]
[340788106,1729824169281,-151.0,0.00013698,2]
[340788107,1729824169304,-151.0,0.00013698,2]
[340788108,1729824169327,-404.13883829,0.00013698,2]
[340788109,1729824169350,-3126.81,0.00013698,2]
[340788110,1729824169574,-500.0,0.00013698,2]
[340788111,1729824169597,-863.16,0.00013698,2]
[340788112,1729824169622,-644.99859799,0.00013698,2]
[340788113,1729824169645,-1210.29,0.00013698,2]
[340788114,1729824169668,-1538.21,0.00013698,2]
[340788115,1729824169690,-246.93550815,0.00013698,2]
[340788116,1729824169713,-604.2480429,0.00013698,2]
[340788117,1729824186047,-300.0,0.00013697,2]
[340788118,1729824186072,-300.0,0.00013697,2]
[340788119,1729824186095,-1954.3119571,0.00013698,2]
[340788120,1729824186119,-315.0120205,0.00013698,2]
[340788121,1729824186143,-500.0,0.00013698,2]
[340788122,1729824186380,-286.789822,0.00013698,2]
[340788123,1729824186405,-579.79,0.00013698,2]
[340788124,1729824186429,-500.0,0.00013698,2]
[340788125,1729824186452,-500.0,0.00013698,2]
[340788126,1729824186475,-574.44224295,0.00013698,2]
[340788127,1729824186499,-500.0,0.00013698,2]
[340788128,1729824186522,-1447.43,0.00013698,2]
[340788129,1729824186552,-500.0,0.00013698,2]
[340788130,1729824186577,-500.0,0.00013698,2]
[340788131,1729824186601,-848.03,0.00013698,2]
[340788132,1729824186625,-500.0,0.00013698,2]
[340788133,1729824186649,-936.98,0.00013698,2]
[340788134,1729824186674,-806.47,0.00013698,2]
[340788135,1729824186699,-700.75,0.00013698,2]
[340788136,1729824186722,-256.52989493,0.00013698,2]
[340788137,1729824186745,-713.16,0.00013698,2]
[340788138,1729824186769,-506.42,0.00013698,2]
[340788139,1729824186793,-745.2,0.00013698,2]
[340788140,1729824186817,-500.0,0.00013698,2]
[340788141,1729824186841,-1160.3,0.00013698,2]
[340788142,1729824186865,-502.31,0.00013698,2]
[340788143,1729824186889,-503.10866235,0.00013698,2]
[340788144,1729824186913,-500.0,0.00013698,2]
[340788145,1729824186938,-696.82,0.00013698,2]
[340788146,1729824186962,-500.0,0.00013698,2]
[340788147,1729824186985,-764.6,0.00013698,2]
[340788148,1729824187008,-500.0,0.00013698,2]
[340788149,1729824187031,-1429.23,0.00013698,2]
[340788150,1729824187053,-500.0,0.00013698,2]
[340788151,1729824187078,-1110.53,0.00013698,2]
[340788152,1729824187102,-500.0,0.00013698,2]
[340788153,1729824187124,-500.0,0.00013698,2]
[340788154,1729824187147,-500.0,0.00013698,2]
[340788155,1729824187171,-500.0,0.00013698,2]
[340788156,1729824187194,-313.86690141,0.00013698,2]
[340788157,1729824187217,-703.39,0.00013698,2]
[340788158,1729824187241,-753.43,0.00013698,2]
[340788159,1729824187264,-1638.51,0.00013698,2]
[340788160,1729824187288,-183.46039,0.00013698,2]
[340788161,1729824187318,-183.46039,0.00013698,2]
[340788162,1729824187343,-183.46039,0.00013698,2]
[340788163,1729824187368,-183.46039,0.00013698,2]
[340788164,1729824187394,-183.46039,0.00013698,2]
[340788165,1729824187418,-183.46039,0.00013698,2]
[340788166,1729824187442,-889.19,0.00013698,2]
[340788167,1729824187467,-1476.56,0.00013698,2]
[340788168,1729824187492,-554.53,0.00013698,2]
[340788169,1729824187515,-183.46039,0.00013698,2]
[340788170,1729824187539,-183.46039,0.00013698,2]
[340788171,1729824187565,-183.46039,0.00013698,2]
[340788172,1729824187589,-183.46039,0.00013698,2]
[340788173,1729824187614,-183.46039,0.00013698,2]
[340788174,1729824187638,-183.46039,0.00013698,2]
[340788175,1729824187662,-934.92,0.00013698,2]
[340788176,1729824187685,-500.0,0.00013698,2]
[340788177,1729824187710,-500.0,0.00013698,2]
[340788178,1729824187734,-500.0,0.00013698,2]
[340788179,1729824187757,-500.0,0.00013698,2]
[340788180,1729824187783,-940.58,0.00013698,2]
[340788181,1729824187807,-500.0,0.00013698,2]
[340788182,1729824187830,-578.76007918,0.00013698,2]
[340788183,1729824187854,-1021.98,0.00013698,2]
[340788184,1729824187878,-500.0,0.00013698,2]
[340788185,1729824187901,-1231.01,0.00013698,2]
[340788186,1729824187925,-500.0,0.00013698,2]
[340788187,1729824187951,-792.33,0.00013698,2]
[340788188,1729824187975,-1229.63,0.00013698,2]
[340788189,1729824187999,-500.0,0.00013698,2]
[340788190,1729824188025,-961.41,0.00013698,2]
[340788191,1729824188049,-901.42,0.00013698,2]
[340788192,1729824188073,-950.33,0.00013698,2]
[340788193,1729824188096,-500.0,0.00013698,2]
[340788194,1729824188121,-935.27,0.00013698,2]
[340788195,1729824188144,-500.0,0.00013698,2]
[340788196,1729824188169,-508.24,0.00013698,2]
[340788197,1729824188193,-500.0,0.00013698,2]
[340788198,1729824188216,-503.24112048,0.00013698,2]
[340788199,1729824188240,-500.0,0.00013698,2]
[340788200,1729824188264,-2425.27,0.00013698,2]
[340788201,1729824188289,-500.0,0.00013698,2]
[340788202,1729824188312,-1470.46,0.00013698,2]
[340788203,1729824188335,-1277.74,0.00013698,2]
[340788204,1729824188360,-500.0,0.00013698,2]
[340788205,1729824188385,-207.029775,0.00013698,2]
[340788206,1729824188408,-596.18,0.00013698,2]
[340788207,1729824188431,-902.09,0.00013698,2]
[340788208,1729824188453,-500.0,0.00013698,2]
[340788209,1729824188477,-162.8928441,0.00013698,2]
[340788223,1729824588989,179.4150939,0.00022,120]
[340788227,1729824632272,-295.99076748,0.00012385,2]
[340788235,1729824638246,-827.99999998,0.00012385,2]
[340788269,1729824640501,-2489.67236994,0.00012385,2]
[340788271,1729824640511,-155.68028593,0.00012539,2]
[340788273,1729824640521,-161.74604,0.00012639,2]
[340788275,1729824640530,-161.74604,0.00012712,2]
[340788277,1729824640540,-161.74604,0.00012785,2]
[340788279,1729824640550,-161.74604,0.00012858,2]
[340788281,1729824640559,-161.74604,0.00012931,2]
[340788283,1729824640569,-3374.6508409,0.00012935,2]
[340788285,1729824640579,-161.74604,0.00013005,2]
[340788287,1729824640589,-161.74604,0.00013078,2]
[340788289,1729824640600,-161.74604,0.00013151,2]
[340788291,1729824640609,-161.74604,0.00013224,2]
[340788293,1729824640619,-161.74604,0.00013297,2]
[340788295,1729824640628,-161.98837367,0.00013585,2]
[340788297,1729824640638,-300.0,0.00013594,2]
[340788299,1729824640649,-300.0,0.00013595,2]
[340788301,1729824640658,-161.98837367,0.00013598,2]
[340788303,1729824640667,-500.0,0.00013673,2]
[340788305,1729824640677,-500.0,0.00013673,2]
[340788306,1729824640686,-500.0,0.00013673,2]
[340788308,1729824640695,-353.49094729,0.00013678,2]
[340788309,1729824640705,-6021.01398722,0.00013678,2]
[340788310,1729824640714,-15284.22089938,0.00013678,2]
[340788311,1729824640726,-477.5934171,0.00013678,2]
[340788312,1729824640991,-620.71194419,0.00013678,2]
[340788317,1729824643282,-30444.86480541,0.00013678,2]
[340788353,1729824646203,-268.0,0.00013548,2]
[340788357,1729824714595,815.53,0.00010959,2]
[340788358,1729824880886,199823.08367886,0.0001,2]
[340788359,1729824880913,261990.87359914,0.0001,2]
[340788807,1729825838572,-300.0,0.00011986,2]
[340788808,1729825838582,-300.0,0.00011986,2]
[340788809,1729825838591,-79.55417824,0.00011987,2]
[340788858,1729825840503,-24820.44582176,0.00011987,2]
[340788860,1729825840513,-250.0,0.00012253,2]
[340788862,1729825840522,-818.1106874,0.00012446,2]
[340788864,1729825840532,-449.0,0.00012685,2]
[340788866,1729825840541,-152.7269473,0.00012688,2]
[340788868,1729825840550,-420.0,0.00013158,2]
[340788870,1729825840559,-420.0,0.00013185,2]
[340788872,1729825840568,-465.0052547,0.00013556,2]
[340788873,1729825840578,-153.0,0.0001363,2]
[340788875,1729825840588,-309.98154031,0.00013654,2]
[340788877,1729825840598,-4518.94982666,0.00013654,2]
[340788879,1729825840607,-500.0,0.00013673,2]
[340788881,1729825840617,-403.27447214,0.00013673,2]
[340788883,1729825840627,-500.0,0.00013673,2]
[340788885,1729825840637,-213.569,0.00013679,2]
[340788887,1729825840646,-500.0,0.00013688,2]
[340788889,1729825840656,-21675.650354,0.00013688,2]
[340788891,1729825840665,-217171.646344,0.00013688,2]
[340788893,1729825840674,-150.071,0.00013696,2]
[340788894,1729825840683,-150.85,0.00013696,2]
[340788896,1729825840692,-528.0,0.00013696,2]
[340788899,1729825840702,-2397.0,0.00013696,2]
[340788901,1729825840713,-1151.0,0.00013696,2]
[340788903,1729825840722,-577.69427684,0.00013698,2]
[340788905,1729825840734,-300.12678266,0.00013698,2]
[340788907,1729825840743,-500.0,0.00013698,2]
[340788909,1729825840753,-500.0,0.00013698,2]
[340788911,1729825840763,-193.44270171,0.00013698,2]
[340788913,1729825840772,-300.06721162,0.00013698,2]
[340788915,1729825840781,-500.0,0.00013698,2]
[340788917,1729825840790,-500.0,0.00013698,2]
[340788919,1729825840801,-500.0,0.00013698,2]
[340788921,1729825840810,-500.0,0.00013698,2]
[340788923,1729825840820,-500.0,0.00013698,2]
[340788925,1729825840831,-500.0,0.00013698,2]
[340788927,1729825840841,-500.0,0.00013698,2]
[340788929,1729825840852,-300.0,0.00013698,2]
[340788931,1729825840862,-500.0,0.00013698,2]
[340788933,1729825840871,-500.0,0.00013698,2]
[340788935,1729825840880,-500.0,0.00013698,2]
[340788937,1729825840890,-500.0,0.00013698,2]
[340788939,1729825840899,-500.0,0.00013698,2]
[340788941,1729825840908,-500.0,0.00013698,2]
[340788943,1729825840920,-411.25129682,0.00013698,2]
[340788945,1729825840930,-500.0,0.00013698,2]
[340788947,1729825840941,-500.0,0.00013698,2]
[340788949,1729825840951,-468.65030884,0.00013698,2]
[340788951,1729825840961,-500.0,0.00013698,2]
[340788953,1729825840970,-500.0,0.00013698,2]
[340788955,1729825840979,-500.0,0.00013698,2]
[340788957,1729825840988,-500.0,0.00013698,2]
[340788958,1729825840997,-500.0,0.00013698,2]
[340788960,1729825841007,-500.0,0.00013698,2]
[340788962,1729825841016,-500.0,0.00013698,2]
[340788964,1729825841025,-500.0,0.00013698,2]
[340788966,1729825841034,-500.0,0.00013698,2]
[340788968,1729825841044,-500.0,0.00013698,2]
[340788970,1729825841055,-500.69557138,0.00013698,2]
[340788973,1729825841065,-500.0,0.00013698,2]
[340788975,1729825841076,-500.0,0.00013698,2]
[340788977,1729825841086,-389.97515871,0.00013698,2]
[340788979,1729825841095,-500.0,0.00013698,2]
[340788980,1729825841106,-500.0,0.00013698,2]
[340788981,1729825841115,-500.0,0.00013698,2]
[340788982,1729825841125,-500.0,0.00013698,2]
[340788983,1729825841135,-500.0,0.00013698,2]
[340788984,1729825841147,-500.0,0.00013698,2]
[340788985,1729825841157,-500.0,0.00013698,2]
[340788986,1729825841166,-500.0,0.00013698,2]
[340788987,1729825841178,-500.0,0.00013698,2]
[340788988,1729825841189,-500.0,0.00013698,2]
[340788989,1729825841199,-500.0,0.00013698,2]
[340788990,1729825841209,-500.0,0.00013698,2]
[340788991,1729825841218,-500.0,0.00013698,2]
[340788992,1729825841227,-500.0,0.00013698,2]
[340788993,1729825841239,-500.0,0.00013698,2]
[340788994,1729825841251,-500.0,0.00013698,2]
[340788995,1729825841261,-250.0,0.00013698,2]
[340788996,1729825841271,-500.0,0.00013698,2]